bitfinex-derivatives/quotes_ETHF0:USTF0_20250928
["timestamp","ask_amount","ask_price","bid_price","bid_amount"]
[1759050166688,2.15870239,4006.2,4006.1,0.00288788]
[1759050172794,2.15870239,4006.2,4006.1,0.33248788]
[1759050173100,2.15870239,4006.2,4006.1,0.55978788]
[1759050178500,2.60778239,4006.2,4006.1,0.55978788]
[1759050179500,1.74353517,4006.2,4006.1,1.6375351]
[1759050180197,1.74353517,4006.2,4006.1,0.77328788]
[1759050180795,1.74353517,4006.2,4006.1,0.33248788]
[1759050180989,1.74353517,4006.2,4006.1,0.00288788]
[1759050181193,1.54545517,4006.2,4005.9,3.2078]
[1759050181392,0.8943,4005.5,4005.4,3.2078]
[1759050181600,2.29250239,4005.5,4005.4,3.7548]
[1759050181791,2.74166239,4005.5,4005.4,3.2078]
[1759050182197,2.74166239,4005.5,4005.4,3.20982339]
[1759050184102,0.44928,4004.5,4004.4,3.4303]
[1759050184297,1.20948,4004.5,4004.4,3.9683]
[1759050185097,1.34578731,4004.5,4004.4,3.97008014]
[1759050185302,1.8797312,4004.5,4004.4,3.97008014]
[1759050186204,1.34578731,4004.5,4004.4,3.97008014]
[1759050186605,2.74362134,4004.5,4004.4,0.76228014]
[1759050189406,2.60952134,4004.5,4004.4,0.76228014]
[1759050189609,0.76240731,4004.5,4004.4,0.76228014]
[1759050191209,1.29567512,4004.5,4004.4,0.76228014]
[1759050192412,0.76240731,4004.5,4004.4,0.76228014]
[1759050195910,1.62665453,4004.5,4004.4,0.76228014]
[1759050196104,1.62665453,4004.5,4004.4,0.00178014]
[1759050196105,1.75495453,4004.5,4004.4,0.00178014]
[1759050196310,2.28810497,4004.5,4004.4,0.00178014]
[1759050196710,2.53910497,4004.5,4004.4,0.00178014]
[1759050197314,10.74690497,4004.5,4004.4,0.00178014]
[1759050197707,10.21375453,4004.5,4004.4,0.00178014]
[1759050198815,10.74672644,4004.5,4004.4,0.00178014]
[1759050199112,11.27970245,4004.5,4004.4,0.00178014]
[1759050199413,10.74672644,4004.5,4004.4,0.00178014]
[1759050201012,11.28016463,4004.5,4004.4,0.00178014]
[1759050201312,11.72943463,4004.5,4004.4,0.00178014]
[1759050205511,0.67157,4003.6,4003.5,0.5682]
[1759050205714,0.99677,4003.6,4003.5,0.5682]
[1759050205913,0.99677,4003.6,4003.5,1.01758]
[1759050206108,0.99677,4003.6,4003.5,1.33528]
[1759050206619,0.99677,4003.6,4003.5,1.33724354]
[1759050207414,0.67157,4003.6,4003.5,1.33724354]
[1759050208113,0.99675,4003.8,4003.7,0.7626]
[1759050209314,1.53121186,4003.8,4003.7,0.7626]
[1759050210321,1.74271186,4003.8,4003.7,0.7626]
[1759050210813,1.20827,4003.6,4003.5,0.53686354]
[1759050211212,1.20827,4003.6,4003.5,0.76456354]
[1759050211410,1.74295778,4003.6,4003.5,0.00196354]
[1759050211620,0.44944,4003.0,4002.9,3.2327822]
[1759050211913,2.982275,4003.0,4002.9,0.0249822]
[1759050212119,0.53468778,4003.0,4002.9,0.7875822]
[1759050212315,0.53468778,4003.0,4002.9,8.9953822]
[1759050212517,3.2078,4003.8,4003.7,0.4449]
[1759050212518,3.87935,4003.8,4003.7,0.4449]
[1759050212720,4.73907962,4003.8,4003.7,0.76582568]
[1759050213415,4.95057962,4003.8,4003.7,0.76582568]
[1759050213721,4.50122962,4003.8,4003.7,0.76582568]
[1759050213924,0.53452962,4003.8,4003.7,6.6300729]
[1759050215418,0.44931,4004.2,4004.1,0.7626]
[1759050215620,0.88303,4003.9,4003.8,0.7859]
[1759050215924,1.74310754,4003.9,4003.8,1.0136]
[1759050216622,0.53487754,4003.9,4003.8,1.0136]
[1759050216826,0.99671,4004.2,4004.1,0.7626]
[1759050217123,1.53165799,4004.2,4004.1,0.7626]
[1759050217929,1.08234799,4004.2,4004.1,0.7626]
[1759050218421,1.20825,4003.8,4003.7,0.00322568]
[1759050218726,6.06624521,4003.8,4003.7,0.00322568]
[1759050219029,11.06624521,4003.8,4003.7,0.00322568]
[1759050219522,6.06624521,4003.8,4003.7,0.00322568]
[1759050221818,6.06624521,4003.8,4002.9,0.3426822]
[1759050221819,0.8829,4003.0,4002.9,0.3426822]
[1759050222025,4.62564799,4003.0,4002.9,0.5598822]
[1759050222824,4.62564799,4003.0,4002.9,0.56307971]
[1759050223229,4.62564799,4003.0,4002.9,0.79077971]
[1759050223422,4.50164799,4003.0,4002.9,0.79077971]
[1759050223629,4.50164799,4003.0,4002.9,5.79077971]
[1759050223630,0.53494799,4003.0,4002.9,5.79077971]
[1759050224230,1.08234799,4003.0,4002.9,5.79077971]
[1759050225330,0.75714799,4003.0,4002.9,5.79077971]
[1759050226227,1.08234799,4003.0,4002.9,5.79077971]
[1759050227537,0.75714799,4003.0,4002.9,5.79077971]
[1759050228333,1.08234799,4003.0,4002.9,5.79077971]
[1759050229440,0.75714799,4003.0,4002.9,5.79077971]
[1759050230944,1.08234799,4003.0,4002.9,5.79077971]
[1759050233540,1.08234799,4003.0,4002.9,6.24022971]
[1759050234341,0.75714799,4003.0,4002.9,6.24022971]
[1759050235140,0.75714799,4003.0,4002.9,6.49222971]
[1759050235634,1.09294799,4003.0,4002.9,6.24022971]
[1759050236237,1.54237799,4003.0,4002.9,6.24022971]
[1759050238343,1.54237799,4003.0,4002.9,5.79077971]
[1759050238544,0.53494799,4003.0,4002.9,1.24022971]
[1759050240643,1.31124799,4003.0,4002.9,0.79077971]
[1759050240846,1.44454799,4003.0,4002.9,0.79077971]
[1759050241548,1.31124799,4003.0,4002.9,0.79077971]
[1759050241746,0.5487,4002.1,4002.0,0.8787]
[1759050242141,0.2129,4002.1,4002.0,0.8787]
[1759050242446,0.5487,4002.1,4002.0,0.8787]
[1759050242646,0.5487,4002.1,4002.0,0.88147873]
[1759050244244,1.08305276,4002.1,4002.0,0.88147873]
[1759050246946,1.31065276,4002.1,4002.0,0.54027873]
[1759050248050,1.31065276,4002.1,4002.0,0.75677873]
[1759050248747,0.53435276,4002.1,4002.0,0.88237873]
[1759050249543,3.5436,4002.6,4002.0,0.88237873]
[1759050249544,0.44951,4002.4,4002.1,0.44953]
[1759050249749,0.98399238,4002.3,4002.2,1.007]
[1759050250251,0.53448238,4002.3,4002.2,1.007]
[1759050252643,0.44946,4002.8,4002.2,6.007]
[1759050252848,0.66486,4002.8,4002.7,0.761]
[1759050253249,0.97676,4002.8,4002.7,0.761]
[1759050256956,1.19516,4002.8,4002.7,0.761]
[1759050257352,0.44949,4002.5,4002.4,3.5307]
[1759050257560,1.32219,4002.5,4002.4,3.2078]
[1759050257954,1.32219,4002.5,4002.4,3.7573]
[1759050258657,1.32219,4002.5,4002.4,0.3229]
[1759050258857,1.19521,4002.3,4002.2,0.8015]
[1759050260561,1.19521,4002.3,4002.2,0.5495]
[1759050260861,0.7457,4002.1,4002.0,0.80427873]
[1759050261258,0.7457,4002.1,4002.0,0.55227873]
[1759050261662,0.7457,4002.1,4002.0,0.76377873]
[1759050263966,0.5273,4002.1,4002.0,0.89247873]
[1759050264463,0.7367,4002.1,4002.0,0.89247873]
[1759050264864,0.7367,4002.1,4002.0,0.76377873]
[1759050265168,1.26912933,4002.1,4002.0,0.76377873]
[1759050266361,1.26912933,4002.1,4002.0,1.21332873]
[1759050270165,1.26912933,4002.1,4002.0,1.34202873]
[1759050271967,1.26912933,4002.1,4002.0,0.00277873]
[1759050272663,0.44962,4001.4,4001.0,0.44966]
[1759050272971,0.7668,4001.1,4001.0,0.5326]
[1759050273169,1.29922933,4001.1,4001.0,0.5326]
[1759050273368,1.29922933,4001.1,4001.0,0.7589]
[1759050273762,1.30158233,4001.1,4001.0,0.76069902]
[1759050275172,1.30158233,4001.1,4001.0,0.53439902]
[1759050275370,1.30158233,4001.1,4001.0,0.76069902]
[1759050276468,5.21770387,4001.1,4001.0,0.00179902]
[1759050276976,5.21770387,4001.1,4000.4,0.44972]
[1759050276977,0.7668,4000.4,4000.3,3.9667]
[1759050278077,0.7668,4000.4,4000.3,3.96947275]
[1759050278567,0.2189,4000.4,4000.3,3.96947275]
[1759050278767,0.5574,4000.7,4000.6,0.4368]
[1759050278970,0.5574,4000.7,4000.6,0.7589]
[1759050280774,0.7668,4000.7,4000.6,0.7589]
[1759050281373,0.2189,4000.7,4000.6,0.7589]
[1759050281679,3.210153,4001.1,4001.0,0.8876]
[1759050282179,3.429053,4001.1,4001.0,0.8876]
[1759050282480,3.976953,4001.1,4001.0,0.7589]
[1759050282669,3.976953,4001.1,4001.0,0.2105]
[1759050282978,0.7668,4000.6,4000.5,1.13951]
[1759050283378,0.7668,4000.6,4000.5,1.46161]
[1759050284182,1.34856,4001.0,4000.9,0.5326]
[1759050284477,1.8853525,4001.0,4000.9,0.2105]
[1759050284875,1.5468525,4001.0,4000.8,0.44968]
[1759050285088,0.7668,4000.9,4000.8,0.5326]
[1759050286578,0.5574,4000.9,4000.8,0.7589]
[1759050286873,0.2189,4000.9,4000.8,0.7589]
[1759050287080,0.5574,4000.9,4000.8,0.7589]
[1759050287277,0.2189,4000.9,4000.8,0.7589]
[1759050289582,3.767553,4001.1,4001.0,0.8876]
[1759050289778,3.74730278,4001.1,4001.0,0.8876]
[1759050289983,4.51410278,4001.1,4001.0,0.8876]
[1759050290585,4.51410278,4001.1,4001.0,0.7589]
[1759050291776,3.96620278,4001.1,4001.0,0.8876]
[1759050291982,4.30470278,4001.1,4001.0,0.8876]
[1759050292282,4.51410278,4001.1,4001.0,0.8876]
[1759050293985,4.51410278,4001.1,4001.0,0.7589]
[1759050294490,4.51410278,4001.1,4001.0,1.20856]
[1759050295686,4.96375278,4001.1,4001.0,1.20856]
[1759050296988,0.002353,4001.1,4001.0,1.34226]
[1759050297585,0.8633,4001.0,4000.9,0.2216]
[1759050297785,0.8633,4001.0,4000.9,0.5461]
[1759050298385,1.27270823,4001.0,4000.9,0.7667]
[1759050299090,0.7328,4001.0,4000.9,0.7667]
[1759050299292,1.27295246,4001.0,4000.9,0.7667]
[1759050300993,1.40345246,4001.0,4000.9,0.7667]
[1759050301191,1.40345246,4001.0,4000.9,0.5461]
[1759050302089,0.4144,4000.4,4000.3,3.65277275]
[1759050302290,0.4144,4000.4,4000.3,3.97727275]
[1759050302291,1.27397503,4000.4,4000.3,3.97727275]
[1759050303591,0.95557503,4000.4,4000.3,3.97727275]
[1759050303893,0.74747503,4000.4,4000.3,3.97727275]
[1759050304589,0.54117503,4000.4,4000.3,3.97727275]
[1759050306396,0.54117503,4000.4,4000.3,8.97727275]
[1759050306692,0.2063,4001.0,4000.9,1.21637]
[1759050306889,0.2063,4001.0,4000.9,1.46937]
[1759050307082,0.74767462,4001.0,4000.9,1.46937]
[1759050307287,1.06607462,4001.0,4000.9,1.46937]
[1759050307498,0.74767462,4001.0,4000.9,1.46937]
[1759050307793,0.54137462,4001.0,4000.9,1.46937]
[1759050312496,0.54137462,4001.0,4000.9,2.33571166]
[1759050313197,0.75887462,4001.0,4000.9,2.33571166]
[1759050314396,0.54137462,4001.0,4000.9,2.33571166]
[1759050314897,0.002353,4001.1,4001.0,0.6852]
[1759050315099,0.002353,4001.1,4001.0,0.9122]
[1759050315595,0.54359904,4001.1,4001.0,0.9122]
[1759050315999,0.54359904,4001.1,4001.0,1.36186]
[1759050316900,0.002353,4001.1,4001.0,1.36186]
[1759050317998,0.002353,4001.1,4001.0,6.36186]
[1759050318202,4.08463,4002.1,4002.0,0.89625]
[1759050318393,4.93855203,4002.1,4002.0,1.23035]
[1759050319103,4.48902203,4002.1,4002.0,1.23035]
[1759050319402,4.49164137,4002.1,4002.0,1.23035]
[1759050320295,4.94117137,4002.1,4002.0,1.23035]
[1759050321102,4.94117137,4002.1,4002.0,1.00335]
[1759050321399,4.49164137,4002.1,4002.0,1.00335]
[1759050322002,4.49164137,4002.1,4002.0,1.23035]
[1759050322802,3.95051934,4002.1,4002.0,1.23035]
[1759050323503,4.49086075,4002.1,4002.0,1.36195]
[1759050323702,3.96826075,4002.1,4002.0,1.36195]
[1759050323905,3.21041934,4002.1,4002.0,1.36195]
[1759050324899,3.41841934,4002.1,4002.0,1.36195]
[1759050325210,4.29380541,4002.1,4002.0,1.36195]
[1759050326518,3.75341934,4002.1,4002.0,1.36195]
[1759050327312,0.54561934,4002.1,4002.0,1.36195]
[1759050328109,0.21061934,4002.1,4002.0,1.36195]
[1759050328301,0.00261934,4002.1,4002.0,6.38413215]
[1759050331212,0.76971934,4002.1,4002.0,5.80298215]
[1759050331512,0.76971934,4002.1,4002.0,0.253]
[1759050332514,0.7671,4001.4,4001.3,3.2078]
[1759050332810,0.7671,4001.4,4001.3,3.4608]
[1759050335617,0.7671,4001.4,4001.3,3.6731]
[1759050335818,0.7671,4001.4,4001.3,3.9931]
[1759050336019,0.7671,4001.4,4001.3,3.4608]
[1759050336319,1.30683732,4001.4,4001.3,3.4608]
[1759050337218,1.30683732,4001.4,4001.3,3.6731]
[1759050337419,1.30683732,4001.4,4001.3,3.9931]
[1759050338824,1.30683732,4001.4,4001.3,4.2172]
[1759050339817,0.97183732,4001.4,4001.3,4.2172]
[1759050340321,1.30683732,4001.4,4001.3,4.2172]
[1759050340619,0.7671,4001.4,4001.3,4.2172]
[1759050342918,0.208,4001.4,4001.3,4.2172]
[1759050343123,0.7671,4001.8,4001.7,1.20597]
[1759050343325,1.3070991,4001.8,4001.7,1.0094]
[1759050344318,0.5399991,4001.8,4001.7,1.0094]
[1759050345014,0.4496,4001.6,4001.5,0.2123]
[1759050345220,0.8817,4001.6,4001.4,0.253]
[1759050345422,1.0974991,4001.5,4001.4,0.253]
[1759050345719,1.21671,4001.4,4001.3,0.5323]
[1759050345923,1.21675,4001.1,4001.0,0.5323]
[1759050346125,1.21675,4001.1,4001.0,0.7853]
[1759050346522,1.21675,4001.1,4001.0,1.0094]
[1759050349130,0.7671,4001.1,4001.0,1.0094]
[1759050349332,0.7671,4001.1,4001.0,1.141]
[1759050350629,0.65759,4001.6,4001.1,0.32]
[1759050350831,1.30712265,4001.5,4001.4,0.7564]
[1759050351030,0.97212265,4001.5,4001.4,0.7564]
[1759050351226,1.30712265,4001.5,4001.4,0.7564]
[1759050352234,1.30712265,4001.5,4001.4,1.20601]
[1759050353730,0.74802265,4001.5,4001.4,1.20601]
[1759050355131,0.54002265,4001.5,4001.4,1.20601]
[1759050355828,0.7709,4002.0,4001.9,1.21336]
[1759050356032,1.31117652,4002.0,4001.9,1.21336]
[1759050356734,1.76072652,4002.0,4001.9,1.21336]
[1759050357432,1.88872652,4002.0,4001.9,1.21336]
[1759050358728,1.43917652,4002.0,4001.9,1.21336]
[1759050359534,1.88872652,4002.0,4001.9,1.21336]
[1759050361133,1.88872652,4002.0,4001.9,0.2245]
[1759050361331,1.22047,4001.8,4001.7,0.92708]
[1759050361533,1.22047,4001.8,4001.3,4.28724148]
[1759050361534,0.7709,4001.4,4001.3,3.7598]
[1759050361731,1.31117652,4001.4,4001.3,4.46142]
[1759050361929,1.31117652,4001.4,4001.3,4.20942]
[1759050362638,1.31117652,4001.4,4000.6,0.5795]
[1759050362639,0.7709,4000.9,4000.6,0.5795]
[1759050362833,0.4318,4000.7,4000.6,0.804]
[1759050363040,1.31117652,4000.7,4000.6,0.804]
[1759050363237,1.31117652,4000.7,4000.6,1.2537]
[1759050363938,1.31117652,4000.7,4000.6,1.4655]
[1759050364534,0.97207652,4000.7,4000.6,1.4655]
[1759050366934,0.75237652,4000.7,4000.6,1.4655]
[1759050368035,0.3391,4001.0,4000.9,0.44967]
[1759050368336,1.2205,4001.5,4001.4,0.4363]
[1759050368545,1.76116991,4001.5,4001.4,0.7638]
[1759050369048,1.31156991,4001.5,4001.4,0.7638]
[1759050370246,0.54066991,4001.5,4001.4,0.7638]
[1759050373250,0.75196991,4001.5,4001.4,0.7638]
[1759050374847,0.54066991,4001.5,4001.4,0.7638]
[1759050375155,0.5366,4001.7,4001.6,0.7681]
[1759050375351,0.5366,4001.7,4001.6,1.0211]
[1759050375548,1.07736515,4001.7,4001.6,1.0211]
[1759050376442,1.30056515,4001.7,4001.6,1.0211]
[1759050377554,1.30056515,4001.7,4001.6,0.7681]
[1759050377754,1.30056515,4001.7,4001.6,1.0211]
[1759050378155,1.30056515,4001.7,4001.6,1.47069]
[1759050381756,1.75014515,4001.7,4001.6,1.21769]
[1759050382054,1.75014515,4001.7,4001.6,1.46969]
[1759050382255,1.30056515,4001.7,4001.6,1.46969]
[1759050383357,1.30056515,4001.7,4001.6,1.21769]
[1759050383655,1.30056515,4001.7,4001.6,1.46969]
[1759050384161,1.30056515,4001.7,4001.6,0.70159]
[1759050384457,1.30056515,4001.7,4001.6,1.22529]
[1759050384653,1.08926515,4001.7,4001.6,1.43129]
[1759050384858,1.07616515,4001.7,4001.6,1.43129]
[1759050385157,0.5354,4001.7,4001.6,1.43129]
[1759050385457,1.07610309,4001.7,4001.6,1.43129]
[1759050385663,0.5354,4001.7,4001.6,1.43129]
[1759050387057,1.07607607,4001.7,4001.6,1.43129]
[1759050387556,1.07606232,4001.7,4001.6,1.43129]
[1759050387952,1.07607827,4001.7,4001.6,1.43129]
[1759050388354,1.52565827,4001.7,4001.6,1.43129]
[1759050388554,1.07607827,4001.7,4001.6,1.43129]
[1759050390164,1.07607827,4001.7,4001.6,0.9817]
[1759050390361,1.07607827,4001.7,4001.6,1.43129]
[1759050391159,1.52565827,4001.7,4001.6,0.9817]
[1759050391359,1.07607827,4001.7,4001.6,1.43129]
[1759050391560,1.28647827,4001.7,4001.6,1.43129]
[1759050391765,1.28647827,4001.7,4001.6,0.9817]
[1759050392762,1.19543,4001.3,4001.2,0.5237]
[1759050392956,1.73614914,4001.3,4001.2,0.5237]
[1759050393156,1.73614914,4001.3,4001.1,3.2078]
[1759050393157,1.40744914,4001.3,4001.1,3.2078]
[1759050393357,1.28659961,4001.2,4001.1,3.4618]
[1759050395064,1.28659961,4001.2,4001.1,3.9855]
[1759050397858,1.28659961,4001.2,4001.1,3.9845]
[1759050399264,1.28659961,4001.2,4001.1,4.1905]
[1759050403271,1.73623961,4001.2,4001.1,4.1905]
[1759050406073,1.73623961,4001.2,4001.1,3.9375]
[1759050406372,1.73623961,4001.2,4001.1,3.7315]
[1759050408471,1.73623961,4001.2,4001.1,3.9375]
[1759050412070,1.73623961,4001.2,4001.1,4.1905]
[1759050412679,1.73623961,4001.2,4001.1,4.64015]
[1759050413174,1.73623961,4001.2,4001.1,4.1905]
[1759050413870,1.73623961,4001.2,4001.1,0.9827]
[1759050416769,1.73623961,4001.2,4001.1,0.7297]
[1759050417676,1.21938,4000.9,4000.8,0.7655]
[1759050417876,1.76017961,4000.9,4000.8,1.0185]
[1759050418178,1.76017961,4000.9,4000.8,0.7655]
[1759050418372,1.76017961,4000.9,4000.8,1.0185]
[1759050419179,1.76017961,4000.9,4000.8,0.7655]
[1759050419585,1.76017961,4000.9,4000.8,1.0185]
[1759050420375,1.76017961,4000.9,4000.8,0.5399]
[1759050420676,1.2194,4000.6,4000.5,0.4745]
[1759050420979,1.2194,4000.6,4000.5,0.5399]
[1759050420980,1.76019961,4000.6,4000.5,0.5399]
[1759050422276,0.7697,4000.4,4000.3,0.79567275]
[1759050422476,1.31049961,4000.4,4000.3,0.79567275]
[1759050422775,0.44978,4000.0,3999.8,0.3184]
[1759050423085,0.44978,4000.0,3999.3,4.2263]
[1759050423086,0.4298,3999.4,3999.3,4.2263]
[1759050423473,0.7697,3999.4,3999.3,4.2263]
[1759050424083,0.7697,3999.4,3999.3,4.22837173]
[1759050427581,1.21954,3999.4,3999.3,0.76757173]
[1759050427786,1.21954,3999.4,3999.3,1.02057173]
[1759050428080,0.5609,3999.1,3999.0,0.7655]
[1759050428381,2.17587944,3999.1,3999.0,0.5399]
[1759050428578,1.30962518,3999.1,3999.0,0.5399]
[1759050428775,0.7697,3999.1,3999.0,0.5399]
[1759050428976,0.77189459,3999.1,3999.0,0.54263829]
[1759050429180,0.00219459,3999.1,3999.0,0.89403829]
[1759050431186,0.22279459,3999.1,3999.0,0.89403829]
[1759050431585,0.53419459,3999.1,3999.0,1.14703829]
[1759050432994,0.74219459,3999.1,3999.0,1.14703829]
[1759050433689,0.74219459,3999.1,3999.0,0.76823829]
[1759050433881,0.74219459,3999.1,3999.0,1.02123829]
[1759050434081,0.74219459,3999.1,3999.0,0.00273829]
[1759050434687,0.74219459,3999.1,3999.0,0.54933829]
[1759050435175,0.74219459,3999.1,3999.0,0.00273829]
[1759050435381,0.74219459,3999.1,3999.0,0.54933829]
[1759050435881,0.74219459,3999.1,3999.0,0.00273829]
[1759050436178,1.60844885,3999.1,3999.0,0.00273829]
[1759050437590,1.60844885,3999.1,3999.0,0.54933829]
[1759050437781,1.60844885,3999.1,3999.0,0.00273829]
[1759050438489,1.60844885,3999.1,3999.0,0.54933829]
[1759050439285,1.60844885,3999.1,3999.0,0.99921829]
[1759050439596,1.60844885,3999.1,3999.0,0.54933829]
[1759050439982,1.60844885,3999.1,3999.0,0.21313829]
[1759050440687,1.60844885,3999.1,3999.0,0.00273829]
[1759050440984,0.74219459,3999.1,3999.0,0.00273829]
[1759050441187,1.60844885,3999.1,3999.0,0.00273829]
[1759050441688,1.60844885,3999.1,3998.4,3.2078]
[1759050441890,0.74,3997.9,3997.2,3.2078]
[1759050442186,0.74,3997.9,3997.1,0.3362]
[1759050442187,0.4286,3997.6,3997.1,0.3362]
[1759050442384,0.4286,3997.6,3997.5,0.5466]
[1759050442698,3.65783,3997.7,3997.0,0.768]
[1759050442699,0.4286,3997.1,3997.0,0.768]
[1759050442880,0.74,3997.1,3997.0,0.76991242]
[1759050443287,0.74,3997.1,3997.0,0.00191242]
[1759050443483,1.60625426,3997.1,3997.0,0.00191242]
[1759050444288,0.7515,3996.7,3996.6,0.7589]
[1759050444484,0.5263,3997.0,3996.9,0.87532]
[1759050444789,0.21,3997.3,3997.2,0.7589]
[1759050444984,0.3163,3997.5,3997.2,0.87528]
[1759050445178,0.7515,3997.5,3997.4,0.7589]
[1759050445383,0.8747,3997.5,3997.4,0.7589]
[1759050445583,1.32476,3997.5,3997.2,0.00186301]
[1759050445783,1.61775426,3997.3,3997.2,0.00186301]
[1759050445982,1.61775426,3997.3,3997.2,0.22136301]
[1759050446291,1.61775426,3997.3,3997.2,0.76076301]
[1759050446487,0.7515,3997.3,3997.2,0.76076301]
[1759050446683,0.21,3997.3,3997.2,0.76076301]
[1759050447484,0.5263,3997.6,3997.5,1.34035]
[1759050447984,3.2078,3997.7,3997.6,0.3337]
[1759050448195,0.7515,3997.9,3997.8,0.7589]
[1759050448692,0.4352,3997.6,3997.5,1.00324]
[1759050448994,0.7515,3997.6,3997.5,1.00324]
[1759050449289,0.7515,3997.6,3997.5,1.20894]
[1759050449691,0.7515,3997.6,3997.5,1.34034]
[1759050450093,0.7515,3997.6,3997.3,0.45007]
[1759050450391,0.7515,3997.4,3997.3,0.66957]
[1759050450589,1.61775426,3997.4,3997.2,0.00186301]
[1759050450795,0.7515,3997.4,3997.3,1.20897]
[1759050450993,0.4352,3997.4,3997.3,1.20897]
[1759050451190,0.5263,3997.7,3997.6,1.20894]
[1759050451393,1.06333742,3997.7,3997.6,1.20894]
[1759050451784,0.5263,3998.1,3998.0,0.2195]
[1759050451990,1.06355029,3998.1,3998.0,0.7589]
[1759050452294,1.06355029,3998.1,3998.0,0.8903]
[1759050452887,1.28875029,3998.1,3998.0,0.8903]
[1759050453393,0.5263,3997.4,3997.3,1.20897]
[1759050453589,0.5263,3997.4,3997.3,0.7589]
[1759050453590,0.7515,3997.4,3997.3,0.7589]
[1759050454491,3.65783,3997.8,3997.6,0.4252]
[1759050454492,0.5263,3997.7,3997.6,0.4252]
[1759050454688,1.06388293,3997.7,3997.6,0.7589]
[1759050455088,0.53758293,3997.7,3997.6,0.7589]
[1759050455285,0.7515,3998.1,3998.0,0.4252]
[1759050455491,1.28921637,3998.1,3998.0,0.7589]
[1759050455684,1.28921637,3998.1,3998.0,1.2089]
[1759050456491,0.7515,3997.8,3997.7,0.66953]
[1759050456789,1.28921637,3997.8,3997.7,1.00323]
[1759050457092,1.28921637,3997.8,3997.7,1.20893]
[1759050460594,3.5241,3998.3,3998.2,0.87517]
[1759050460796,4.27235979,3998.3,3998.2,1.20887]
[1759050461998,4.49755979,3998.3,3998.2,1.20887]
[1759050462999,4.49755979,3998.3,3998.2,0.7589]
[1759050463206,0.5584,3998.0,3997.9,0.45001]
[1759050463392,1.09665979,3998.0,3997.9,0.45001]
[1759050463697,1.41295979,3998.0,3997.9,0.45001]
[1759050464597,0.7515,3997.8,3997.7,0.45002]
[1759050464894,0.7515,3997.6,3997.5,3.65784]
[1759050465096,1.28975979,3997.6,3997.5,3.65784]
[1759050465802,1.28975979,3997.6,3997.5,4.21104]
[1759050466000,1.28975979,3997.6,3997.5,4.54814]
[1759050466201,0.97345979,3997.6,3997.5,4.54814]
[1759050466503,1.28975979,3997.6,3997.5,4.41674]
[1759050467004,1.28975979,3997.6,3997.5,1.20894]
[1759050470795,1.28975979,3997.6,3997.5,0.45004]
[1759050471001,0.7515,3997.4,3997.3,0.66957]
[1759050471204,1.28975979,3997.4,3997.3,1.00327]
[1759050471997,1.28975979,3997.4,3997.3,1.20897]
[1759050477106,1.28975979,3997.4,3997.3,0.66957]
[1759050477313,1.28975979,3997.4,3997.3,0.2195]
[1759050477803,1.28975979,3997.4,3997.3,0.55]
[1759050478512,1.73981979,3997.4,3997.3,1.00007]
[1759050480015,1.28975979,3997.4,3997.3,1.00007]
[1759050480517,1.73981979,3997.4,3997.3,0.55]
[1759050481207,1.73981979,3997.4,3997.3,0.2195]
[1759050481407,1.21587,3997.3,3997.2,0.00186301]
[1759050481607,1.75613519,3997.3,3997.2,0.54686301]
[1759050481814,1.75613519,3997.3,3997.2,0.21636301]
[1759050482313,1.75613519,3997.3,3997.2,0.54686301]
[1759050483507,2.83750067,3997.3,3997.2,0.00186301]
[1759050484605,1.21596,3996.6,3996.5,0.545]
[1759050484809,1.75622519,3996.6,3996.5,0.545]
[1759050485515,0.45018,3996.4,3995.8,3.2078]
[1759050485717,1.21598,3996.4,3996.3,0.7653]
[1759050486014,0.85984745,3996.4,3996.3,0.7653]
[1759050486213,0.5478,3996.4,3996.3,0.7653]
[1759050487318,0.5478,3996.4,3996.1,0.545]
[1759050487319,0.53920384,3996.4,3996.1,0.545]
[1759050487510,0.2275,3996.2,3996.1,0.7653]
[1759050487818,1.30694776,3996.2,3996.1,0.545]
[1759050488014,1.30694776,3996.2,3996.1,0.2145]
[1759050488408,1.30694776,3996.2,3996.1,0.7653]
[1759050488711,0.76774392,3996.2,3996.1,0.7653]
[1759050488911,0.76774392,3996.2,3996.1,0.545]
[1759050489414,0.7658,3996.1,3996.0,0.45222885]
[1759050489614,0.7658,3996.1,3996.0,0.66672885]
[1759050489916,0.7658,3996.1,3996.0,0.21650885]
[1759050490320,5.59351425,3996.1,3996.0,0.00200885]
[1759050491021,5.59351425,3996.1,3996.0,0.21030885]
[1759050491212,5.59351425,3996.1,3996.0,0.55250885]
[1759050491715,4.51214877,3996.1,3996.0,0.55250885]
[1759050493416,3.9736,3996.1,3996.0,0.77340885]
[1759050493612,3.9736,3996.1,3996.0,0.90800885]
[1759050494318,3.9736,3996.1,3996.0,0.77340885]
[1759050496028,0.00194392,3996.2,3996.1,1.22161]
[1759050496727,0.00194392,3996.2,3996.1,7.30297548]
[1759050497028,0.00194392,3996.2,3996.1,7.55797548]
[1759050500427,0.22944392,3996.2,3996.1,6.87377548]
[1759050500634,0.76684392,3996.2,3996.1,1.22161]
[1759050500934,0.76684392,3996.2,3996.1,1.47661]
[1759050501118,0.76684392,3996.2,3996.1,1.22161]
[1759050503437,0.00194392,3996.2,3996.1,1.22161]
[1759050505130,0.00194392,3996.2,3996.1,2.30297548]
[1759050506732,0.54624392,3996.2,3996.1,1.22161]
[1759050507635,0.20974392,3996.2,3996.1,1.22161]
[1759050507838,0.00194392,3996.2,3996.1,1.22161]
[1759050508734,0.75624392,3996.2,3996.1,1.22161]
[1759050508937,0.75624392,3996.2,3996.1,1.47661]
[1759050509438,0.41974392,3996.2,3996.1,1.22161]
[1759050509640,0.00194392,3996.2,3996.1,1.47661]
[1759050511738,0.00194392,3996.2,3996.1,6.47661]
[1759050513530,0.20974392,3996.2,3996.1,6.01331]
[1759050513735,0.75624392,3996.2,3996.1,0.78581]
[1759050513927,1.29607086,3996.2,3996.1,0.45021]
[1759050514132,1.29607086,3996.2,3996.1,0.70521]
[1759050514337,1.29607086,3996.2,3996.1,0.45021]
[1759050514526,1.29607086,3996.2,3996.1,1.26001]
[1759050514838,1.29607086,3996.2,3996.1,1.47771]
[1759050515040,0.74957086,3996.2,3996.1,1.47771]
[1759050515238,0.54177086,3996.2,3996.1,1.47771]